[Event "Titled Tuesday Blitz March 21 Late 2023"]
[White "Van Foreest, Jorden"]
[Black "Zamorano, Jorge"]
[WhiteFideId "1039784"]
[BlackFideId "173770"]
[WhiteElo "2633"]
[BlackElo "2331"]
[Result "1-0"]
[Round "02"]
[TimeControl "180+2"]
[Date "2023.03.21"]
[WhiteClock "0:01:01"]
[BlackClock "0:00:26"]

1. e4 {[%clk 0:03:00]}  c5 {[%clk 0:02:59]} 2. Nf3 {[%clk 0:03:00]}  d6 {[%clk 0:02:59]} 3. d4 {[%clk 0:02:59]}  cxd4 {[%clk 0:03:00]} 4. Nxd4 {[%clk 0:02:59]}  Nf6 {[%clk 0:02:59]} 5. Nc3 {[%clk 0:02:59]}  a6 {[%clk 0:03:00]} 6. a4 {[%clk 0:02:59]}  Nc6 {[%clk 0:02:57]} 7. Nxc6 {[%clk 0:02:51]}  bxc6 {[%clk 0:02:56]} 8. a5 {[%clk 0:02:52]}  g6 {[%clk 0:02:49]} 9. e5 {[%clk 0:02:41]}  dxe5 {[%clk 0:02:48]} 10. Qxd8+ {[%clk 0:02:41]}  Kxd8 {[%clk 0:02:49]} 11. Be3 {[%clk 0:02:40]}  Bf5 {[%clk 0:02:45]} 12. O-O-O+ {[%clk 0:02:36]}  Kc8 {[%clk 0:02:45]} 13. Na4 {[%clk 0:02:36]}  Nd5 {[%clk 0:02:33]} 14. Bd2 {[%clk 0:02:20]}  Kc7 {[%clk 0:02:22]} 15. c4 {[%clk 0:02:19]}  Nf4 {[%clk 0:02:18]} 16. g3 {[%clk 0:02:13]}  Ne6 {[%clk 0:02:18]} 17. Be3 {[%clk 0:02:07]}  Bg7 {[%clk 0:02:04]} 18. Bb6+ {[%clk 0:02:07]}  Kc8 {[%clk 0:02:04]} 19. b4 {[%clk 0:02:05]}  Nd4 {[%clk 0:02:03]} 20. Bg2 {[%clk 0:01:56]}  Be6 {[%clk 0:01:18]} 21. f4 {[%clk 0:01:49]}  Bxc4 {[%clk 0:00:57]} 22. Bxd4 {[%clk 0:01:48]}  Bb3 {[%clk 0:00:49]} 23. Nb6+ {[%clk 0:01:46]}  Kb7 {[%clk 0:00:49]} 24. Bxe5 {[%clk 0:01:44]}  Bxd1 {[%clk 0:00:47]} 25. Rxd1 {[%clk 0:01:45]}  Bxe5 {[%clk 0:00:45]} 26. fxe5 {[%clk 0:01:41]}  Rad8 {[%clk 0:00:45]} 27. Nd7 {[%clk 0:01:35]}  Kc7 {[%clk 0:00:43]} 28. Nc5 {[%clk 0:01:36]}  Rxd1+ {[%clk 0:00:43]} 29. Kxd1 {[%clk 0:01:36]}  Rd8+ {[%clk 0:00:39]} 30. Kc2 {[%clk 0:01:34]}  Rd4 {[%clk 0:00:39]} 31. Nxa6+ {[%clk 0:01:33]}  Kb7 {[%clk 0:00:39]} 32. Nc5+ {[%clk 0:01:34]}  Kc7 {[%clk 0:00:39]} 33. Be4 {[%clk 0:01:27]}  h5 {[%clk 0:00:31]} 34. Bxg6 {[%clk 0:01:26]}  Rd5 {[%clk 0:00:28]} 35. Be4 {[%clk 0:01:14]}  Rxe5 {[%clk 0:00:28]} 36. a6 {[%clk 0:01:15]}  Rg5 {[%clk 0:00:23]} 37. a7 {[%clk 0:01:08]}  Rg8 {[%clk 0:00:23]} 38. b5 {[%clk 0:01:08]}  Kb6 {[%clk 0:00:23]} 39. bxc6 {[%clk 0:01:03]}  Kxc5 {[%clk 0:00:23]} 40. c7 {[%clk 0:01:02]}  Kd6 {[%clk 0:00:24]} 41. a8=Q {[%clk 0:01:02]}  Rxa8 {[%clk 0:00:24]} 42. Bxa8 {[%clk 0:01:02]}  Kxc7 {[%clk 0:00:25]} 43. Kd3 {[%clk 0:01:02]}  Kd6 {[%clk 0:00:25]} 44. Ke4 {[%clk 0:01:02]}  Ke6 {[%clk 0:00:25]} 45. h4 {[%clk 0:01:02]}  Kf6 {[%clk 0:00:26]} 46. Bd5 {[%clk 0:01:01]}  e6 {[%clk 0:00:26]} 47. Bc4 {[%clk 0:01:01]} 1-0


[Site "https://www.chess.com"]

[Event "Titled Tuesday Blitz March 21 Late 2023"]
[White "Rostomyan, Mikayel"]
[Black "Makhnev, Denis"]
[WhiteFideId "13313754"]
[BlackFideId "13707647"]
[WhiteElo "2009"]
[BlackElo "2525"]
[Result "0-1"]
[Round "02"]
[TimeControl "180+2"]
[Date "2023.03.21"]
[WhiteClock "0:00:12"]
[BlackClock "0:00:05"]

1. d4 {[%clk 0:03:00]}  Nf6 {[%clk 0:02:58]} 2. Nf3 {[%clk 0:02:59]}  e6 {[%clk 0:02:58]} 3. c4 {[%clk 0:02:58]}  d5 {[%clk 0:02:57]} 4. g3 {[%clk 0:02:57]}  Bb4+ {[%clk 0:02:57]} 5. Bd2 {[%clk 0:02:57]}  Be7 {[%clk 0:02:57]} 6. Qc2 {[%clk 0:02:56]}  O-O {[%clk 0:02:57]} 7. Bg2 {[%clk 0:02:56]}  Nbd7 {[%clk 0:02:57]} 8. O-O {[%clk 0:02:56]}  Ne4 {[%clk 0:02:57]} 9. Bf4 {[%clk 0:02:56]}  c6 {[%clk 0:02:57]} 10. Nc3 {[%clk 0:02:55]}  g5 {[%clk 0:02:54]} 11. Be3 {[%clk 0:02:50]}  f5 {[%clk 0:02:54]} 12. Ne5 {[%clk 0:02:38]}  Nd6 {[%clk 0:02:49]} 13. cxd5 {[%clk 0:02:24]}  exd5 {[%clk 0:02:46]} 14. f3 {[%clk 0:02:13]}  f4 {[%clk 0:02:31]} 15. Bf2 {[%clk 0:02:12]}  Nxe5 {[%clk 0:02:29]} 16. dxe5 {[%clk 0:02:12]}  Nc4 {[%clk 0:02:29]} 17. Rad1 {[%clk 0:01:50]}  Bf5 {[%clk 0:02:00]} 18. Qc1 {[%clk 0:01:48]}  Bg6 {[%clk 0:01:53]} 19. Bd4 {[%clk 0:01:27]}  Qb8 {[%clk 0:01:50]} 20. e4 {[%clk 0:01:17]}  fxe3 {[%clk 0:01:28]} 21. f4 {[%clk 0:01:15]}  gxf4 {[%clk 0:01:28]} 22. gxf4 {[%clk 0:01:14]}  Nd2 {[%clk 0:00:37]} 23. Bxe3 {[%clk 0:01:07]}  Nxf1 {[%clk 0:00:36]} 24. Rxf1 {[%clk 0:01:05]}  Qc8 {[%clk 0:00:35]} 25. Qd2 {[%clk 0:00:52]}  Qd7 {[%clk 0:00:33]} 26. Ne2 {[%clk 0:00:53]}  Rad8 {[%clk 0:00:31]} 27. Ng3 {[%clk 0:00:53]}  d4 {[%clk 0:00:24]} 28. Bf2 {[%clk 0:00:47]}  Qg4 {[%clk 0:00:24]} 29. Be1 {[%clk 0:00:43]}  Bc5 {[%clk 0:00:18]} 30. h3 {[%clk 0:00:42]}  Qe6 {[%clk 0:00:17]} 31. b4 {[%clk 0:00:29]}  Bb6 {[%clk 0:00:17]} 32. Kh2 {[%clk 0:00:28]}  Kh8 {[%clk 0:00:17]} 33. a4 {[%clk 0:00:25]}  a6 {[%clk 0:00:17]} 34. h4 {[%clk 0:00:22]}  Qe7 {[%clk 0:00:12]} 35. Ne4 {[%clk 0:00:21]}  d3 {[%clk 0:00:08]} 36. Bg3 {[%clk 0:00:20]}  Bf5 {[%clk 0:00:07]} 37. Nf6 {[%clk 0:00:19]}  Rxf6 {[%clk 0:00:07]} 38. exf6 {[%clk 0:00:20]}  Qxf6 {[%clk 0:00:07]} 39. a5 {[%clk 0:00:19]}  Bd4 {[%clk 0:00:07]} 40. Re1 {[%clk 0:00:19]}  Bc3 {[%clk 0:00:06]} 41. Qd1 {[%clk 0:00:15]}  Bxe1 {[%clk 0:00:06]} 42. Bxe1 {[%clk 0:00:16]}  d2 {[%clk 0:00:06]} 43. Bf2 {[%clk 0:00:16]}  Bg4 {[%clk 0:00:05]} 44. Qxg4 {[%clk 0:00:12]}  d1=Q {[%clk 0:00:05]} 45. Qg3 {[%clk 0:00:12]}  Qd2 {[%clk 0:00:05]} 46. Be4 {[%clk 0:00:12]}  Qdxf4 {[%clk 0:00:05]} 0-1


[Site "https://www.chess.com"]

[Event "Titled Tuesday Blitz March 21 Late 2023"]
[White "Bok, Benjamin"]
[Black "Gunduz, Umut Erdem"]
[WhiteFideId "1017063"]
[BlackFideId "6381383"]
[WhiteElo "2658"]
[BlackElo "2182"]
[Result "1-0"]
[Round "02"]
[TimeControl "180+2"]
[Date "2023.03.21"]
[WhiteClock "0:00:21"]
[BlackClock "0:00:09"]

1. d4 {[%clk 0:02:57]}  Nf6 {[%clk 0:02:58]} 2. c4 {[%clk 0:02:58]}  e6 {[%clk 0:02:57]} 3. Nc3 {[%clk 0:02:58]}  c5 {[%clk 0:02:56]} 4. d5 {[%clk 0:02:55]}  exd5 {[%clk 0:02:57]} 5. cxd5 {[%clk 0:02:56]}  d6 {[%clk 0:02:58]} 6. e4 {[%clk 0:02:57]}  g6 {[%clk 0:02:58]} 7. f4 {[%clk 0:02:56]}  Bg7 {[%clk 0:02:58]} 8. Bb5+ {[%clk 0:02:56]}  Nfd7 {[%clk 0:02:58]} 9. a4 {[%clk 0:02:56]}  O-O {[%clk 0:02:58]} 10. Nf3 {[%clk 0:02:57]}  Na6 {[%clk 0:02:59]} 11. O-O {[%clk 0:02:56]}  Nc7 {[%clk 0:02:58]} 12. Bc4 {[%clk 0:02:32]}  a6 {[%clk 0:02:57]} 13. h3 {[%clk 0:02:29]}  Rb8 {[%clk 0:02:53]} 14. e5 {[%clk 0:01:55]}  dxe5 {[%clk 0:02:37]} 15. d6 {[%clk 0:01:56]}  Ne6 {[%clk 0:02:37]} 16. Nd5 {[%clk 0:01:46]}  b5 {[%clk 0:02:30]} 17. Ne7+ {[%clk 0:01:44]}  Kh8 {[%clk 0:02:30]} 18. Bxe6 {[%clk 0:01:36]}  fxe6 {[%clk 0:02:30]} 19. Ng5 {[%clk 0:01:16]}  exf4 {[%clk 0:01:36]} 20. Nxe6 {[%clk 0:01:09]}  Qb6 {[%clk 0:01:29]} 21. Nxg7 {[%clk 0:01:07]}  Kxg7 {[%clk 0:01:20]} 22. Bxf4 {[%clk 0:01:06]}  c4+ {[%clk 0:01:04]} 23. Kh1 {[%clk 0:01:06]}  Bb7 {[%clk 0:01:04]} 24. Qd2 {[%clk 0:01:03]}  Rf6 {[%clk 0:00:57]} 25. Bh6+ {[%clk 0:00:33]}  Kf7 {[%clk 0:00:57]} 26. Bg5 {[%clk 0:00:29]}  Rxf1+ {[%clk 0:00:34]} 27. Rxf1+ {[%clk 0:00:30]}  Ke8 {[%clk 0:00:33]} 28. Qf4 {[%clk 0:00:27]}  Qc5 {[%clk 0:00:11]} 29. Qf7+ {[%clk 0:00:24]}  Kd8 {[%clk 0:00:11]} 30. Nc6+ {[%clk 0:00:21]}  Kc8 {[%clk 0:00:09]} 31. Qe8# {[%clk 0:00:21]} 1-0


[Site "https://www.chess.com"]

[Event "Titled Tuesday Blitz March 21 Late 2023"]
[White "Tregubov, Pavel V."]
[Black "Hansen, Eric"]
[WhiteFideId "4115341"]
[BlackFideId "2606771"]
[WhiteElo "2425"]
[BlackElo "2569"]
[Result "0-1"]
[Round "02"]
[TimeControl "180+2"]
[Date "2023.03.21"]
[WhiteClock "0:00:50"]
[BlackClock "0:01:44"]

1. e4 {[%clk 0:03:00]}  e5 {[%clk 0:02:52]} 2. Nf3 {[%clk 0:03:00]}  Nc6 {[%clk 0:02:51]} 3. Bb5 {[%clk 0:03:00]}  a6 {[%clk 0:02:50]} 4. Ba4 {[%clk 0:03:00]}  Nf6 {[%clk 0:02:49]} 5. O-O {[%clk 0:02:59]}  Be7 {[%clk 0:02:48]} 6. d3 {[%clk 0:02:58]}  d6 {[%clk 0:02:47]} 7. c4 {[%clk 0:02:58]}  O-O {[%clk 0:02:47]} 8. Nc3 {[%clk 0:02:58]}  Nd7 {[%clk 0:02:41]} 9. Bxc6 {[%clk 0:02:43]}  bxc6 {[%clk 0:02:41]} 10. d4 {[%clk 0:02:43]}  f6 {[%clk 0:02:37]} 11. Be3 {[%clk 0:02:36]}  a5 {[%clk 0:02:35]} 12. b3 {[%clk 0:02:36]}  Qe8 {[%clk 0:02:35]} 13. Qc2 {[%clk 0:02:23]}  Qh5 {[%clk 0:02:31]} 14. Ne2 {[%clk 0:02:19]}  c5 {[%clk 0:02:21]} 15. Ng3 {[%clk 0:02:18]}  Qf7 {[%clk 0:02:21]} 16. dxc5 {[%clk 0:02:14]}  dxc5 {[%clk 0:02:21]} 17. Rad1 {[%clk 0:02:10]}  Nb8 {[%clk 0:02:22]} 18. Nf5 {[%clk 0:02:01]}  Nc6 {[%clk 0:02:18]} 19. Nxe7+ {[%clk 0:01:39]}  Qxe7 {[%clk 0:02:13]} 20. Rd5 {[%clk 0:01:39]}  Nd4 {[%clk 0:02:08]} 21. Bxd4 {[%clk 0:01:23]}  cxd4 {[%clk 0:02:05]} 22. c5 {[%clk 0:01:23]}  Be6 {[%clk 0:02:03]} 23. Nd2 {[%clk 0:01:20]}  Bxd5 {[%clk 0:02:01]} 24. exd5 {[%clk 0:01:20]}  Rfd8 {[%clk 0:02:01]} 25. f4 {[%clk 0:01:14]}  exf4 {[%clk 0:01:53]} 26. Qc4 {[%clk 0:01:06]}  Qf7 {[%clk 0:01:48]} 27. Rxf4 {[%clk 0:01:02]}  Qxd5 {[%clk 0:01:47]} 28. Qc1 {[%clk 0:00:55]}  d3 {[%clk 0:01:47]} 29. h3 {[%clk 0:00:55]}  a4 {[%clk 0:01:46]} 30. b4 {[%clk 0:00:53]}  Qxa2 {[%clk 0:01:45]} 31. b5 {[%clk 0:00:53]}  Qc2 {[%clk 0:01:44]} 32. Qe1 {[%clk 0:00:50]}  Qxc5+ {[%clk 0:01:44]} 0-1


[Site "https://www.chess.com"]

[Event "Titled Tuesday Blitz March 21 Late 2023"]
[White "Grigoriants, Sergey"]
[Black "Kakabayev, Mergen"]
[WhiteFideId "4130804"]
[BlackFideId "14002990"]
[WhiteElo "2502"]
[BlackElo "2259"]
[Result "1-0"]
[Round "02"]
[TimeControl "180+2"]
[Date "2023.03.21"]
[WhiteClock "0:01:30"]
[BlackClock "0:01:51"]

1. d4 {[%clk 0:02:57]}  d5 {[%clk 0:03:00]} 2. c4 {[%clk 0:02:57]}  c6 {[%clk 0:03:00]} 3. Nf3 {[%clk 0:02:56]}  Nf6 {[%clk 0:03:00]} 4. Nc3 {[%clk 0:02:56]}  e6 {[%clk 0:03:00]} 5. e3 {[%clk 0:02:53]}  Nbd7 {[%clk 0:02:59]} 6. Qc2 {[%clk 0:02:53]}  Bd6 {[%clk 0:02:59]} 7. Bd3 {[%clk 0:02:53]}  dxc4 {[%clk 0:02:58]} 8. Bxc4 {[%clk 0:02:53]}  b5 {[%clk 0:02:59]} 9. Be2 {[%clk 0:02:53]}  Bb7 {[%clk 0:02:59]} 10. O-O {[%clk 0:02:53]}  a6 {[%clk 0:02:59]} 11. Rd1 {[%clk 0:02:53]}  Qe7 {[%clk 0:02:58]} 12. e4 {[%clk 0:02:46]}  e5 {[%clk 0:02:58]} 13. dxe5 {[%clk 0:02:46]}  Nxe5 {[%clk 0:02:58]} 14. Nd4 {[%clk 0:02:46]}  g6 {[%clk 0:02:55]} 15. f4 {[%clk 0:02:31]}  Bc5 {[%clk 0:02:16]} 16. fxe5 {[%clk 0:02:28]}  Qxe5 {[%clk 0:02:16]} 17. Be3 {[%clk 0:02:18]}  O-O-O {[%clk 0:02:16]} 18. Qd3 {[%clk 0:01:56]}  Rxd4 {[%clk 0:02:06]} 19. Bxd4 {[%clk 0:01:54]}  Rd8 {[%clk 0:02:06]} 20. Qh3+ {[%clk 0:01:49]}  Kb8 {[%clk 0:01:59]} 21. Bxc5 {[%clk 0:01:49]}  Qxc5+ {[%clk 0:01:59]} 22. Kh1 {[%clk 0:01:48]}  Rxd1+ {[%clk 0:01:56]} 23. Rxd1 {[%clk 0:01:48]}  b4 {[%clk 0:01:56]} 24. Na4 {[%clk 0:01:32]}  Qc2 {[%clk 0:01:56]} 25. Qg3+ {[%clk 0:01:32]}  Ka8 {[%clk 0:01:51]} 26. Rd8+ {[%clk 0:01:31]}  Ka7 {[%clk 0:01:51]} 27. Qb8# {[%clk 0:01:30]} 1-0


[Site "https://www.chess.com"]

[Event "Titled Tuesday Blitz March 21 Late 2023"]
[White "Vlassov, Nikolai"]
[Black "Indjic, Aleksandar"]
[WhiteFideId "4103360"]
[BlackFideId "911925"]
[WhiteElo "2324"]
[BlackElo "2614"]
[Result "1-0"]
[Round "02"]
[TimeControl "180+2"]
[Date "2023.03.21"]
[WhiteClock "0:00:12"]
[BlackClock "0:00:51"]

1. e4 {[%clk 0:03:00]}  e5 {[%clk 0:02:59]} 2. Bc4 {[%clk 0:03:00]}  Nf6 {[%clk 0:02:57]} 3. d3 {[%clk 0:03:00]}  Nc6 {[%clk 0:02:57]} 4. Nf3 {[%clk 0:03:00]}  h6 {[%clk 0:02:55]} 5. O-O {[%clk 0:02:37]}  d6 {[%clk 0:02:54]} 6. Re1 {[%clk 0:02:25]}  g5 {[%clk 0:02:51]} 7. Nfd2 {[%clk 0:02:15]}  g4 {[%clk 0:02:49]} 8. Nf1 {[%clk 0:02:14]}  Rg8 {[%clk 0:02:49]} 9. Nc3 {[%clk 0:02:07]}  h5 {[%clk 0:02:46]} 10. Ne3 {[%clk 0:02:03]}  Be6 {[%clk 0:02:45]} 11. Ncd5 {[%clk 0:02:00]}  h4 {[%clk 0:02:41]} 12. c3 {[%clk 0:01:59]}  Bxd5 {[%clk 0:02:38]} 13. Nxd5 {[%clk 0:01:56]}  Nxd5 {[%clk 0:02:37]} 14. Bxd5 {[%clk 0:01:50]}  Qd7 {[%clk 0:02:37]} 15. Qb3 {[%clk 0:01:40]}  Nd8 {[%clk 0:02:35]} 16. d4 {[%clk 0:01:35]}  c6 {[%clk 0:02:34]} 17. Bc4 {[%clk 0:01:34]}  g3 {[%clk 0:02:33]} 18. fxg3 {[%clk 0:01:32]}  hxg3 {[%clk 0:02:33]} 19. h3 {[%clk 0:01:22]}  Bg7 {[%clk 0:02:33]} 20. Be3 {[%clk 0:01:18]}  Ne6 {[%clk 0:02:32]} 21. Bxe6 {[%clk 0:01:11]}  fxe6 {[%clk 0:02:31]} 22. d5 {[%clk 0:01:07]}  exd5 {[%clk 0:02:27]} 23. exd5 {[%clk 0:01:07]}  c5 {[%clk 0:02:17]} 24. Qc4 {[%clk 0:01:01]}  Bf6 {[%clk 0:02:02]} 25. b4 {[%clk 0:01:00]}  cxb4 {[%clk 0:01:53]} 26. cxb4 {[%clk 0:00:58]}  Ke7 {[%clk 0:01:52]} 27. Rf1 {[%clk 0:00:54]}  Raf8 {[%clk 0:01:40]} 28. Qe4 {[%clk 0:00:46]}  Rf7 {[%clk 0:01:35]} 29. Bxa7 {[%clk 0:00:44]}  Rh8 {[%clk 0:01:28]} 30. Be3 {[%clk 0:00:18]}  Ke8 {[%clk 0:01:03]} 31. Qg6 {[%clk 0:00:16]}  Qe7 {[%clk 0:01:03]} 32. Rf5 {[%clk 0:00:13]}  Rf8 {[%clk 0:00:53]} 33. Raf1 {[%clk 0:00:12]}  e4 {[%clk 0:00:51]} 34. Rxf6 {[%clk 0:00:12]} 1-0


[Site "https://www.chess.com"]

[Event "Titled Tuesday Blitz March 21 Late 2023"]
[White "Sjugirov, Sanan"]
[Black "Gontcharov, Vladislav"]
[WhiteFideId "4189302"]
[BlackFideId "4123492"]
[WhiteElo "2569"]
[BlackElo "2470"]
[Result "1-0"]
[Round "02"]
[TimeControl "180+2"]
[Date "2023.03.21"]
[WhiteClock "0:00:30"]
[BlackClock "0:00:06"]

1. e4 {[%clk 0:03:00]}  e6 {[%clk 0:02:59]} 2. d4 {[%clk 0:03:00]}  d5 {[%clk 0:03:00]} 3. e5 {[%clk 0:03:00]}  c5 {[%clk 0:03:00]} 4. c3 {[%clk 0:03:01]}  Nc6 {[%clk 0:03:00]} 5. Nf3 {[%clk 0:03:01]}  Nge7 {[%clk 0:03:00]} 6. Na3 {[%clk 0:02:59]}  cxd4 {[%clk 0:03:00]} 7. cxd4 {[%clk 0:02:59]}  Nf5 {[%clk 0:03:00]} 8. Nc2 {[%clk 0:02:59]}  Nh4 {[%clk 0:03:00]} 9. Nxh4 {[%clk 0:02:32]}  Qxh4 {[%clk 0:02:59]} 10. Be3 {[%clk 0:02:33]}  Bd7 {[%clk 0:02:51]} 11. a3 {[%clk 0:02:32]}  Rc8 {[%clk 0:02:41]} 12. Bd3 {[%clk 0:02:31]}  Na5 {[%clk 0:02:28]} 13. O-O {[%clk 0:02:24]}  Nc4 {[%clk 0:02:28]} 14. Bc1 {[%clk 0:02:23]}  Ba4 {[%clk 0:02:13]} 15. g3 {[%clk 0:02:22]}  Qd8 {[%clk 0:02:08]} 16. Qg4 {[%clk 0:01:48]}  h5 {[%clk 0:01:43]} 17. Qf4 {[%clk 0:01:47]}  g5 {[%clk 0:01:36]} 18. Qf3 {[%clk 0:01:43]}  Bxc2 {[%clk 0:01:19]} 19. Bxc2 {[%clk 0:01:41]}  Nxe5 {[%clk 0:01:19]} 20. dxe5 {[%clk 0:01:28]}  Rxc2 {[%clk 0:01:18]} 21. Qb3 {[%clk 0:01:28]}  Rc7 {[%clk 0:01:08]} 22. Qa4+ {[%clk 0:01:26]}  Qd7 {[%clk 0:01:02]} 23. Qxa7 {[%clk 0:01:22]}  Be7 {[%clk 0:01:02]} 24. Be3 {[%clk 0:01:07]}  O-O {[%clk 0:01:01]} 25. Rac1 {[%clk 0:00:51]}  Rfc8 {[%clk 0:00:57]} 26. Rxc7 {[%clk 0:00:50]}  Rxc7 {[%clk 0:00:56]} 27. Qd4 {[%clk 0:00:46]}  Qb5 {[%clk 0:00:39]} 28. Qd2 {[%clk 0:00:40]}  g4 {[%clk 0:00:31]} 29. Bg5 {[%clk 0:00:40]}  Bf8 {[%clk 0:00:19]} 30. Bd8 {[%clk 0:00:32]}  Rc4 {[%clk 0:00:06]} 31. Qg5+ {[%clk 0:00:32]}  Kh7 {[%clk 0:00:06]} 32. Qxh5+ {[%clk 0:00:31]}  Kg8 {[%clk 0:00:06]} 33. Bf6 {[%clk 0:00:30]} 1-0


[Site "https://www.chess.com"]

[Event "Titled Tuesday Blitz March 21 Late 2023"]
[White "Alex_Sahakyan2006"]
[Black "Gholami Orimi, Mahdi"]
[BlackFideId "12558486"]
[WhiteElo "2626"]
[BlackElo "2363"]
[Result "0-1"]
[Round "02"]
[TimeControl "180+2"]
[Date "2023.03.21"]
[WhiteClock "0:01:07"]
[BlackClock "0:00:53"]

1. e4 {[%clk 0:03:00]}  e5 {[%clk 0:02:01]} 2. Nf3 {[%clk 0:03:00]}  Nc6 {[%clk 0:02:01]} 3. d4 {[%clk 0:03:00]}  exd4 {[%clk 0:02:01]} 4. Nxd4 {[%clk 0:03:01]}  Nf6 {[%clk 0:02:01]} 5. Nc3 {[%clk 0:02:58]}  Bb4 {[%clk 0:02:01]} 6. Nxc6 {[%clk 0:02:58]}  bxc6 {[%clk 0:02:02]} 7. Bd3 {[%clk 0:02:59]}  O-O {[%clk 0:02:03]} 8. O-O {[%clk 0:02:58]}  d5 {[%clk 0:02:04]} 9. exd5 {[%clk 0:02:59]}  cxd5 {[%clk 0:02:04]} 10. h3 {[%clk 0:02:58]}  c6 {[%clk 0:02:01]} 11. Qf3 {[%clk 0:02:55]}  h6 {[%clk 0:01:59]} 12. Ne2 {[%clk 0:02:53]}  Bd6 {[%clk 0:01:57]} 13. Nd4 {[%clk 0:02:37]}  Bd7 {[%clk 0:01:53]} 14. Nf5 {[%clk 0:02:31]}  Bxf5 {[%clk 0:01:51]} 15. Qxf5 {[%clk 0:02:30]}  Re8 {[%clk 0:01:50]} 16. Bf4 {[%clk 0:02:26]}  g6 {[%clk 0:01:40]} 17. Bxd6 {[%clk 0:02:16]}  gxf5 {[%clk 0:01:39]} 18. Bf4 {[%clk 0:02:16]}  Kg7 {[%clk 0:01:38]} 19. Bxf5 {[%clk 0:02:13]}  Ne4 {[%clk 0:01:39]} 20. f3 {[%clk 0:02:07]}  Nd6 {[%clk 0:01:37]} 21. Bd3 {[%clk 0:02:01]}  Nc4 {[%clk 0:01:36]} 22. b3 {[%clk 0:02:00]}  Qf6 {[%clk 0:01:37]} 23. Bg3 {[%clk 0:01:55]}  Ne3 {[%clk 0:01:18]} 24. Rfe1 {[%clk 0:01:50]}  Nf5 {[%clk 0:01:17]} 25. Bf2 {[%clk 0:01:48]}  a5 {[%clk 0:01:16]} 26. a4 {[%clk 0:01:41]}  Nd6 {[%clk 0:01:05]} 27. Bg3 {[%clk 0:01:31]}  Rxe1+ {[%clk 0:01:01]} 28. Rxe1 {[%clk 0:01:32]}  Re8 {[%clk 0:01:02]} 29. Rd1 {[%clk 0:01:21]}  Nf5 {[%clk 0:01:00]} 30. Bf2 {[%clk 0:01:19]}  Qg5 {[%clk 0:00:59]} 31. Bb6 {[%clk 0:01:12]}  Nh4 {[%clk 0:00:55]} 32. Bd4+ {[%clk 0:01:07]}  Kg8 {[%clk 0:00:53]} 0-1


[Site "https://www.chess.com"]

[Event "Titled Tuesday Blitz March 21 Late 2023"]
[White "Kramnik, Vladimir"]
[Black "Srinath, Rao S.V."]
[WhiteFideId "4101588"]
[BlackFideId "5028876"]
[WhiteElo "2712"]
[BlackElo "2196"]
[Result "1-0"]
[Round "02"]
[TimeControl "180+2"]
[Date "2023.03.21"]
[WhiteClock "0:00:28"]
[BlackClock "0:00:16"]

1. Nf3 {[%clk 0:03:00]}  Nf6 {[%clk 0:02:59]} 2. g3 {[%clk 0:03:00]}  g6 {[%clk 0:02:59]} 3. b3 {[%clk 0:02:59]}  Bg7 {[%clk 0:02:59]} 4. Bb2 {[%clk 0:02:59]}  O-O {[%clk 0:03:00]} 5. Bg2 {[%clk 0:02:59]}  d6 {[%clk 0:02:59]} 6. c4 {[%clk 0:02:58]}  c5 {[%clk 0:02:58]} 7. O-O {[%clk 0:02:57]}  Nc6 {[%clk 0:02:58]} 8. d4 {[%clk 0:02:56]}  Ne4 {[%clk 0:02:39]} 9. e3 {[%clk 0:02:56]}  Bg4 {[%clk 0:02:33]} 10. h3 {[%clk 0:02:50]}  Bxf3 {[%clk 0:02:31]} 11. Bxf3 {[%clk 0:02:50]}  Ng5 {[%clk 0:02:28]} 12. Bxc6 {[%clk 0:02:33]}  bxc6 {[%clk 0:02:28]} 13. h4 {[%clk 0:02:23]}  Ne6 {[%clk 0:02:20]} 14. Qd2 {[%clk 0:02:22]}  cxd4 {[%clk 0:02:18]} 15. exd4 {[%clk 0:02:19]}  d5 {[%clk 0:02:19]} 16. Rd1 {[%clk 0:02:17]}  h5 {[%clk 0:02:12]} 17. Na3 {[%clk 0:02:13]}  Qd7 {[%clk 0:02:05]} 18. Rac1 {[%clk 0:02:10]}  Rfc8 {[%clk 0:02:01]} 19. Nc2 {[%clk 0:02:01]}  Rab8 {[%clk 0:01:57]} 20. Ne3 {[%clk 0:02:00]}  Nc7 {[%clk 0:01:56]} 21. Qe2 {[%clk 0:01:57]}  e6 {[%clk 0:01:53]} 22. Ba3 {[%clk 0:01:56]}  Ne8 {[%clk 0:01:50]} 23. Bc5 {[%clk 0:01:52]}  Nf6 {[%clk 0:01:49]} 24. f3 {[%clk 0:01:52]}  Bh6 {[%clk 0:01:47]} 25. Rc3 {[%clk 0:01:48]}  Qc7 {[%clk 0:01:45]} 26. Kg2 {[%clk 0:01:47]}  Nd7 {[%clk 0:01:42]} 27. cxd5 {[%clk 0:01:43]}  cxd5 {[%clk 0:01:39]} 28. b4 {[%clk 0:01:37]}  Nb6 {[%clk 0:01:02]} 29. f4 {[%clk 0:01:35]}  Bg7 {[%clk 0:00:45]} 30. Rdc1 {[%clk 0:01:32]}  Na4 {[%clk 0:00:42]} 31. R3c2 {[%clk 0:01:25]}  Nxc5 {[%clk 0:00:41]} 32. Rxc5 {[%clk 0:01:25]}  Qb7 {[%clk 0:00:41]} 33. Qd2 {[%clk 0:01:01]}  Rxc5 {[%clk 0:00:37]} 34. bxc5 {[%clk 0:01:01]}  Qb2 {[%clk 0:00:36]} 35. Qxb2 {[%clk 0:01:01]}  Rxb2+ {[%clk 0:00:34]} 36. Rc2 {[%clk 0:01:01]}  Rb8 {[%clk 0:00:18]} 37. Rd2 {[%clk 0:01:01]}  Rb4 {[%clk 0:00:15]} 38. Nc2 {[%clk 0:00:59]}  Rc4 {[%clk 0:00:15]} 39. Kf2 {[%clk 0:00:56]}  Kf8 {[%clk 0:00:15]} 40. Ke2 {[%clk 0:00:56]}  Ke7 {[%clk 0:00:16]} 41. Kd3 {[%clk 0:00:54]}  Kd7 {[%clk 0:00:16]} 42. Rd1 {[%clk 0:00:49]}  Kc7 {[%clk 0:00:16]} 43. Rb1 {[%clk 0:00:48]}  Ra4 {[%clk 0:00:16]} 44. a3 {[%clk 0:00:47]}  Rc4 {[%clk 0:00:15]} 45. Rb4 {[%clk 0:00:45]}  Rxb4 {[%clk 0:00:15]} 46. axb4 {[%clk 0:00:44]}  Kc6 {[%clk 0:00:15]} 47. Na3 {[%clk 0:00:44]}  a6 {[%clk 0:00:16]} 48. Kc3 {[%clk 0:00:40]}  f6 {[%clk 0:00:16]} 49. Nc2 {[%clk 0:00:35]}  e5 {[%clk 0:00:16]} 50. f5 {[%clk 0:00:32]}  gxf5 {[%clk 0:00:15]} 51. Ne3 {[%clk 0:00:31]}  f4 {[%clk 0:00:14]} 52. gxf4 {[%clk 0:00:31]}  exf4 {[%clk 0:00:15]} 53. Nf5 {[%clk 0:00:30]}  Bf8 {[%clk 0:00:16]} 54. Kd3 {[%clk 0:00:29]}  Kb5 {[%clk 0:00:16]} 55. Ke2 {[%clk 0:00:29]}  Kxb4 {[%clk 0:00:16]} 56. c6 {[%clk 0:00:28]} 1-0


[Site "https://www.chess.com"]